bitfinex/quotes_ETHUSD_20241105
["timestamp","ask_amount","ask_price","bid_price","bid_amount"]
[1730804008610,4.1029,2437.3,2437.2,0.01]
[1730804008763,6.33644639,2437.3,2437.2,0.2965686]
[1730804010366,6.33644985,2437.3,2437.2,0.2965686]
[1730804012699,7.57484855,2437.3,2437.2,0.2865686]
[1730804013102,7.57484855,2437.3,2437.0,0.01]
[1730804013103,4.10323,2437.1,2437.0,0.01]
[1730804013401,5.90630431,2437.1,2437.0,0.01]
[1730804014271,5.90632854,2437.1,2437.0,0.01]
[1730804016116,5.90632854,2437.1,2437.0,0.29687326]
[1730804017618,1.72245038,2437.2,2437.1,0.01]
[1730804017917,1.72245038,2437.2,2437.1,0.29686532]
[1730804018411,1.72245038,2437.2,2437.1,0.01]
[1730804018571,1.72245038,2437.2,2437.1,0.7621]
[1730804018774,1.72245038,2437.2,2437.1,1.39595156]
[1730804020620,1.72245038,2437.2,2437.1,1.3959083]
[1730804021181,1.72245038,2437.2,2437.1,1.04895657]
[1730804021687,1.72245038,2437.2,2437.1,1.39591148]
[1730804021908,1.72245038,2437.2,2437.1,1.04895657]
[1730804022115,1.72245038,2437.2,2437.1,1.39590689]
[1730804022452,1.72245038,2437.2,2437.1,1.04895657]
[1730804022972,1.72245038,2437.2,2437.1,1.91216742]
[1730804023319,1.72245038,2437.3,2437.2,0.01]
[1730804023610,1.72245038,2437.3,2437.2,0.29703238]
[1730804024622,1.72245038,2437.3,2437.2,0.64395826]
[1730804024779,1.72245038,2437.3,2437.2,0.29703238]
[1730804024978,1.72245038,2437.3,2437.2,0.86490878]
[1730804025880,1.72245038,2437.3,2437.2,1.21178802]
[1730804026503,1.72245038,2437.3,2437.2,5.31484802]
[1730804026827,1.72245038,2437.4,2437.3,0.01]
[1730804027187,1.72245038,2437.4,2437.3,0.29685817]
[1730804027400,1.72245038,2437.4,2437.3,0.01]
[1730804027600,1.72245038,2437.4,2437.3,0.29685817]
[1730804027801,1.72245038,2437.4,2437.3,0.29684066]
[1730804028225,1.72245038,2437.4,2437.3,0.64368878]
[1730804028589,1.72245038,2437.4,2437.3,1.6616783]
[1730804028936,1.72245038,2437.4,2437.3,1.31483018]
[1730804029099,1.72245038,2437.4,2437.3,1.66166602]
[1730804029487,1.72245038,2437.4,2437.3,1.31483018]
[1730804029684,1.72245038,2437.4,2437.3,0.29684066]
[1730804030203,1.72245038,2437.4,2437.3,0.64371667]
[1730804032647,5.90555936,2437.5,2437.3,0.29684066]
[1730804032801,5.90555936,2437.5,2437.3,0.64374474]
[1730804033006,5.90555936,2437.5,2437.3,0.29684066]
[1730804034232,1.72245038,2437.4,2437.3,0.29684066]
[1730804034432,1.72245038,2437.4,2437.3,0.64371021]
[1730804035494,6.33620951,2437.5,2437.3,0.64371021]
[1730804035495,1.80289936,2437.5,2437.4,0.01]
[1730804035695,1.80289936,2437.5,2437.4,1.18144122]
[1730804035890,1.80289936,2437.5,2437.4,1.46797645]
[1730804036329,1.80289936,2437.5,2437.4,1.46797087]
[1730804036640,1.72245038,2437.5,2437.4,2.0828596]
[1730804036997,1.72245038,2437.5,2437.4,2.08284355]
[1730804037340,6.33584951,2437.7,2437.4,2.08284355]
[1730804037341,1.72245038,2437.6,2437.4,2.08284355]
[1730804037629,1.72245038,2437.6,2437.4,1.73602396]
[1730804039104,1.72245038,2437.6,2437.5,0.34669789]
[1730804039309,1.72245038,2437.6,2437.5,0.29648354]
[1730804039310,5.82485038,2437.6,2437.5,0.29648354]
[1730804041038,1.72245038,2437.6,2437.5,0.29648354]
[1730804045557,8.36101556,2437.6,2437.5,0.28648354]
[1730804046134,8.36114348,2437.6,2437.5,0.28648354]
[1730804046544,6.20863045,2437.6,2437.5,0.28648354]
[1730804046759,6.28907943,2437.6,2437.5,0.28648354]
[1730804046978,8.44168565,2437.6,2437.5,0.28648354]
[1730804047269,8.36123667,2437.6,2437.5,0.28648354]
[1730804048530,6.20863045,2437.6,2437.5,0.28648354]
[1730804048737,6.28907943,2437.6,2437.5,0.28648354]
[1730804049977,4.10273,2437.4,2437.3,0.01]
[1730804050173,4.18317898,2437.4,2437.3,0.01]
[1730804051455,6.33594321,2437.4,2437.3,0.01]
[1730804051658,4.18317898,2437.4,2437.3,0.01]
[1730804053371,4.96787898,2437.4,2437.3,0.01]
[1730804053575,4.1029,2437.3,2437.2,0.01]
[1730804053780,5.82513781,2437.3,2437.2,0.01]
[1730804053964,1.72227326,2437.3,2437.2,0.01]
[1730804054143,1.72227326,2437.3,2437.2,0.35711624]
[1730804054545,1.72227326,2437.3,2437.2,0.01]
[1730804054966,1.80272224,2437.3,2437.2,0.35712116]
[1730804055276,1.80272224,2437.3,2437.2,0.01]
[1730804055682,5.90562224,2437.3,2437.2,0.35709686]
[1730804055977,5.90562224,2437.3,2437.2,0.01]
[1730804056760,5.90562224,2437.3,2437.2,0.35703816]
[1730804057490,1.72227326,2437.3,2437.2,0.35703816]
[1730804057651,1.72227326,2437.3,2437.2,0.01]
[1730804057844,1.72227326,2437.3,2437.2,0.35698883]
[1730804058261,1.72227326,2437.4,2437.3,0.01]
[1730804058465,1.72227326,2437.5,2437.3,0.35698883]
[1730804058679,1.72227326,2437.5,2437.3,0.01]
[1730804059591,1.80272224,2437.5,2437.3,0.01]
[1730804059750,1.72227326,2437.4,2437.3,0.01]
[1730804060069,1.72227326,2437.4,2437.3,0.35792909]
[1730804061055,1.72227326,2437.4,2437.3,0.64441977]
[1730804061985,1.72227326,2437.4,2437.3,0.6444116]
[1730804062185,1.72227326,2437.4,2437.3,0.29649068]
[1730804066780,6.33596446,2437.5,2437.3,0.29649068]
[1730804066979,4.10273,2437.4,2437.3,0.28649068]
[1730804067183,6.25567548,2437.4,2437.3,0.29649068]
[1730804067700,2.15401876,2437.4,2437.3,0.29649068]
[1730804067906,6.33719774,2437.4,2437.3,0.29649068]
[1730804068198,6.25674876,2437.4,2437.3,0.29649068]
[1730804068402,7.70745187,2437.4,2437.3,0.28649068]
[1730804068601,4.1029,2437.3,2437.2,0.01]
[1730804069104,4.18334898,2437.3,2437.2,0.29030864]
[1730804070300,6.33750141,2437.3,2437.2,0.29030864]
[1730804070511,6.24474971,2437.3,2437.2,0.2866211]
[1730804072108,6.3372437,2437.3,2437.2,0.2866211]
[1730804072276,6.33722092,2437.3,2437.1,0.7672]
[1730804072484,1.72308847,2437.2,2437.1,0.7672]
[1730804072891,1.72308847,2437.2,2437.1,1.11515744]
[1730804075396,5.82614847,2437.2,2437.1,1.11515744]
[1730804076009,5.90659745,2437.2,2437.1,1.40179523]
[1730804076593,5.90659745,2437.2,2437.1,1.40197811]
[1730804076797,5.90659745,2437.2,2437.1,0.64477811]
[1730804078398,4.18350898,2437.2,2437.1,0.64477811]
[1730804078991,4.10306,2437.2,2437.1,0.64477811]
[1730804080592,0.08044898,2437.3,2437.1,0.64477811]
[1730804080835,4.18340898,2437.3,2437.1,0.29663779]
[1730804081127,0.08044898,2437.3,2437.1,0.29663779]
[1730804081291,4.10273,2437.4,2437.2,0.34802012]
[1730804081494,4.10273,2437.4,2437.3,0.2904407]
[1730804081727,4.18317898,2437.4,2437.3,0.64845303]
[1730804081906,4.18317898,2437.4,2437.3,0.3004407]
[1730804082226,4.18317898,2437.4,2437.3,0.01368754]
[1730804082403,6.33626932,2437.4,2437.3,0.01368754]
[1730804083535,6.33626932,2437.4,2437.3,0.30043195]
[1730804085322,6.33626932,2437.4,2437.3,0.29674441]
[1730804085612,6.33626932,2437.4,2437.3,0.64845904]
[1730804086311,4.18317898,2437.4,2437.3,0.64845904]
[1730804086646,6.33626932,2437.4,2437.3,0.64845904]
[1730804087147,6.33626932,2437.4,2437.3,0.64844524]
[1730804087347,6.33626932,2437.4,2437.3,0.30043195]
[1730804087543,6.33626932,2437.4,2437.3,0.64844726]
[1730804089004,6.33626932,2437.4,2437.3,0.30043195]
[1730804089212,6.33626932,2437.4,2437.3,0.64844426]
[1730804090100,6.33626932,2437.4,2437.3,0.64475672]
[1730804090306,6.33626932,2437.4,2437.3,0.64844426]
[1730804090769,6.33743798,2437.4,2437.3,0.64844426]
[1730804093155,5.56262986,2437.4,2437.3,0.29043195]
[1730804093311,5.56262986,2437.4,2437.3,0.28674441]
[1730804093312,6.34582986,2437.4,2437.3,0.28674441]
[1730804093512,6.34582986,2437.4,2437.3,0.00368754]
[1730804093717,6.34582986,2437.4,2437.3,0.29015195]
[1730804093914,6.34582986,2437.4,2437.3,0.00368754]
[1730804098369,4.10306,2437.2,2437.1,0.00368754]
[1730804098665,4.18350898,2437.2,2437.1,0.35177204]
[1730804098961,6.338016,2437.2,2437.1,0.63826983]
[1730804099524,7.59837269,2437.2,2437.1,0.63826983]
[1730804100148,7.59831813,2437.2,2437.1,0.63826983]
[1730804100333,6.33796144,2437.2,2437.1,0.63826983]
[1730804100544,7.09536144,2437.2,2437.1,0.63458229]
[1730804100867,4.94090898,2437.2,2437.1,0.28649779]
[1730804101026,7.52625193,2437.2,2437.1,0.28649779]
[1730804101225,4.10374,2436.8,2436.7,0.01]
[1730804101443,4.10374,2436.8,2436.7,0.3582595]
[1730804101444,7.01349038,2436.8,2436.7,0.3582595]
[1730804101681,6.33863936,2436.8,2436.7,0.01]
[1730804101879,1.8039003,2436.8,2436.7,0.35799288]
[1730804102081,1.8039003,2436.8,2436.7,0.64495994]
[1730804102283,1.72345132,2436.8,2436.7,0.64495994]
[1730804102585,1.8039003,2436.9,2436.7,0.64485139]
[1730804102744,1.8039003,2436.9,2436.7,0.29696706]
[1730804103447,5.9074903,2436.9,2436.7,0.29696706]
[1730804104500,0.08044898,2436.9,2436.8,0.3514535]
[1730804104660,0.08044898,2437.0,2436.9,0.8196]
[1730804104853,5.9071603,2437.1,2437.0,0.00368754]
[1730804105149,1.8039003,2437.1,2437.0,0.00368754]
[1730804105263,1.8039003,2437.1,2437.0,0.29079707]
[1730804106995,5.9071303,2437.1,2437.0,0.29079707]
[1730804108799,1.8039003,2437.1,2437.0,0.29079707]
[1730804108975,1.72345132,2437.1,2437.0,0.81220078]
[1730804109303,1.72345132,2437.2,2437.1,0.01]
[1730804109678,1.72345132,2437.2,2437.1,0.29709284]
[1730804110357,1.8039003,2437.3,2437.2,0.00368754]
[1730804110557,5.9067103,2437.4,2437.2,0.29058865]
[1730804111778,1.8039003,2437.4,2437.3,0.01]
[1730804112160,1.8039003,2437.5,2437.3,0.29685817]
[1730804115807,1.8039003,2437.5,2437.3,0.01]
[1730804116318,1.8039003,2437.5,2437.4,0.28672771]
[1730804118310,1.8039003,2437.5,2437.3,0.01]
[1730804120638,1.72345132,2437.5,2437.3,0.01]
[1730804121643,1.72345132,2437.7,2437.6,0.00368754]
[1730804121940,1.8039003,2437.8,2437.6,0.00368754]
[1730804122103,1.72345132,2437.8,2437.7,0.28652891]
[1730804122719,1.72345132,2437.8,2437.7,0.29652891]
[1730804122941,1.72345132,2437.9,2437.7,1.09812891]
[1730804123140,1.72345132,2437.9,2437.8,0.00368754]
[1730804123310,1.72345132,2438.0,2437.8,0.29004229]
[1730804124145,5.82518132,2438.0,2437.8,0.29004229]
[1730804124301,5.82534132,2437.9,2437.8,0.29004229]
[1730804124700,1.72345132,2437.9,2437.8,0.29004229]
[1730804126245,5.82519132,2438.0,2437.8,0.29004229]
[1730804126444,1.72345132,2437.9,2437.8,0.29004229]
[1730804126808,5.82519132,2438.0,2437.8,0.29004229]
[1730804127406,5.82519132,2438.0,2437.9,0.01]
[1730804127864,5.9056403,2438.0,2437.9,0.01]
[1730804128088,5.9056403,2438.0,2437.9,0.28601436]
[1730804128366,4.10189,2437.9,2437.8,0.00368754]
[1730804128674,5.82152844,2437.9,2437.8,0.28971858]
[1730804129757,5.90197742,2437.9,2437.8,0.28971858]
[1730804130578,5.90197742,2437.9,2437.8,0.00368754]
[1730804131644,5.90197742,2437.9,2437.8,0.28971858]
[1730804131838,5.90197742,2437.9,2437.8,0.00368754]
[1730804132149,7.19919699,2437.9,2437.8,0.00368754]
[1730804132354,5.47955855,2437.9,2437.8,0.28592606]
[1730804132680,4.10205,2437.8,2437.7,0.01]
[1730804132844,5.82134193,2437.8,2437.7,0.01]
[1730804133176,4.18249898,2437.8,2437.7,0.01]
[1730804133584,4.18249898,2437.8,2437.7,0.29594274]
[1730804134073,5.90179091,2437.8,2437.7,0.29594274]
[1730804134289,4.18249898,2437.8,2437.7,0.29594274]
[1730804136312,1.51339557,2437.8,2437.7,0.29594274]
[1730804136516,5.61544557,2437.8,2437.7,0.29594274]
[1730804136676,5.61544557,2437.8,2437.7,0.01]
[1730804136884,5.61544557,2437.8,2437.7,0.29594274]
[1730804137083,7.3347375,2437.8,2437.7,0.29594274]
[1730804137509,5.61544557,2437.8,2437.7,0.29594274]
[1730804140129,5.82127193,2437.9,2437.7,0.29594274]
[1730804140311,1.71929193,2438.0,2437.7,0.29594274]
[1730804140512,5.90132091,2438.1,2437.9,0.00368754]
[1730804141042,5.90132091,2438.1,2438.0,0.29594519]
[1730804142334,0.08044898,2438.1,2438.0,0.29594519]
[1730804142838,4.18199898,2438.1,2438.0,0.29594519]
[1730804143447,0.08044898,2438.1,2438.0,0.29594519]
[1730804144638,1.71929193,2438.2,2438.0,0.29594519]
[1730804144838,1.71929193,2438.2,2438.1,0.00368754]
[1730804145255,1.71929193,2438.2,2438.1,0.28938863]
[1730804146795,5.82067193,2438.2,2438.1,0.28938863]
[1730804147230,5.90112091,2438.2,2438.1,0.28938863]
[1730804147743,4.18182898,2438.2,2438.1,0.28938863]
[1730804149638,0.08044898,2438.2,2438.1,0.28938863]
[1730804149814,4.18182898,2438.2,2438.1,0.28938863]
[1730804154915,4.18182898,2438.2,2438.1,0.28570109]
[1730804155112,4.18182898,2438.2,2438.1,0.28938863]
[1730804156463,5.90155557,2438.2,2438.1,0.28938863]
[1730804159449,5.90155557,2438.2,2438.1,0.28570109]
[1730804159662,5.90155557,2438.2,2438.1,0.28938863]
[1730804161463,4.18182898,2438.2,2438.1,0.28938863]
[1730804161666,0.08044898,2438.2,2438.1,1.09568863]
[1730804162864,0.08044898,2438.2,2438.1,0.28938863]
[1730804162865,4.18182898,2438.2,2438.1,0.28938863]
[1730804163069,5.90155557,2438.2,2438.1,0.28938863]
[1730804163237,4.18182898,2438.2,2438.1,0.28938863]
[1730804163561,5.90155557,2438.2,2438.1,0.28938863]
[1730804163873,4.18182898,2438.2,2438.1,0.28938863]
[1730804164063,5.90155557,2438.2,2438.1,0.28938863]
[1730804165133,8.02584173,2438.2,2438.1,0.28570109]
[1730804165376,8.45638121,2438.2,2437.9,0.00368754]
[1730804165717,5.82214128,2438.0,2437.9,0.00368754]
[1730804165881,7.86832954,2438.0,2437.9,0.00368754]
[1730804166074,7.86832954,2438.0,2437.9,0.2890109]
[1730804166687,6.06745928,2438.0,2437.9,0.2890109]
[1730804166899,4.10172,2438.0,2437.9,0.2890109]
[1730804167165,5.82214128,2438.0,2437.9,0.2890109]
[1730804167390,5.90259026,2438.0,2437.9,0.2890109]
[1730804169077,4.18216898,2438.0,2437.9,0.63679944]
[1730804169267,4.18216898,2438.0,2437.9,0.63689609]
[1730804169268,0.08044898,2438.0,2437.9,0.63689609]
[1730804169528,5.90246026,2438.1,2437.9,0.63689609]
[1730804169667,5.90246026,2438.1,2437.9,0.2890109]
[1730804169865,5.90246026,2438.1,2438.0,0.01]
[1730804170098,4.18203898,2438.1,2438.0,0.35788846]
[1730804170303,5.90246026,2438.1,2438.0,0.64330009]
[1730804170603,5.90246026,2438.1,2438.0,0.29541163]
[1730804172611,5.90246026,2438.1,2437.8,0.01]
[1730804172612,4.10189,2437.9,2437.8,0.01]
[1730804172870,5.89301942,2437.9,2437.8,0.64364613]
[1730804172985,5.89301942,2437.9,2437.8,0.34822739]
[1730804173820,5.89301942,2437.9,2437.8,0.63364613]
[1730804174318,5.89301942,2437.9,2437.8,0.28541874]
[1730804174505,5.89301942,2437.9,2437.8,0.63358263]
[1730804174817,4.10205,2437.8,2437.7,0.00368754]
[1730804175342,4.18249898,2437.8,2437.7,0.28912296]
[1730804175478,7.92310052,2437.8,2437.7,0.28543542]
[1730804175674,4.10239,2437.6,2437.5,0.00368754]
[1730804175879,4.18283898,2437.6,2437.5,0.35187913]
[1730804176098,4.18283898,2437.6,2437.5,0.90898067]
[1730804176301,4.18283898,2437.6,2437.5,0.35187913]
[1730804177297,4.18283898,2437.6,2437.5,0.00368754]
[1730804177514,4.18283898,2437.6,2437.5,0.35170692]
[1730804177722,0.08044898,2437.7,2437.5,0.35170692]
[1730804177890,4.18282898,2437.7,2437.5,0.00368754]
[1730804178096,4.18282898,2437.7,2437.6,0.34800864]
[1730804178297,5.90381842,2437.7,2437.5,0.00368754]
[1730804178988,5.90381842,2437.7,2437.6,0.01]
[1730804179187,4.10239,2437.6,2437.5,0.00368754]
[1730804179626,4.18283898,2437.6,2437.5,0.35160118]
[1730804179997,4.18283898,2437.6,2437.5,0.00368754]
[1730804180627,0.08044898,2437.6,2437.5,0.00368754]
[1730804181028,0.08044898,2437.6,2437.5,0.28936623]
[1730804182435,4.18283898,2437.6,2437.5,0.28936623]
[1730804185470,5.90382842,2437.6,2437.5,0.28936623]
[1730804185680,8.08830628,2437.6,2437.5,0.28936623]
[1730804185893,4.10256,2437.5,2437.4,0.01]
[1730804186176,4.10273,2437.4,2437.3,0.00368754]
[1730804186371,4.18317898,2437.4,2437.3,0.00368754]
[1730804186870,4.18317898,2437.4,2437.3,0.28955706]
[1730804187073,4.18317898,2437.4,2437.3,0.00368754]
[1730804187286,4.18317898,2437.4,2437.3,0.28955706]
[1730804187567,4.18317898,2437.4,2437.3,0.00368754]
[1730804188088,4.18317898,2437.4,2437.3,0.28955706]
[1730804188302,4.18317898,2437.4,2437.3,0.00368754]
[1730804188475,0.08044898,2437.4,2437.3,0.28955706]
[1730804188658,0.08044898,2437.4,2437.3,0.00368754]
[1730804189005,4.18300898,2437.5,2437.4,0.01]
[1730804189158,0.08044898,2437.5,2437.4,0.29585284]
[1730804189358,4.18300898,2437.5,2437.4,0.29585284]
[1730804199688,4.18300898,2437.5,2437.4,0.01]
[1730804199894,4.18300898,2437.5,2437.4,0.29597534]
[1730804204434,4.18300898,2437.5,2437.4,1.09287534]
[1730804205542,4.18300898,2437.5,2437.4,1.44081696]
[1730804208723,1.72117397,2437.8,2437.6,0.01]
[1730804208925,4.18240898,2437.9,2437.8,0.01]
[1730804209233,0.08044898,2437.9,2437.8,0.29617099]
[1730804210044,4.18233898,2437.9,2437.8,0.29617099]
[1730804211179,4.10164,2438.1,2438.0,0.01]
[1730804211342,4.1014,2438.2,2438.0,0.7683]
[1730804211539,4.1014,2438.2,2438.0,1.05440264]
[1730804211771,4.18199898,2438.1,2438.0,1.05440264]
[1730804211976,0.08044898,2438.1,2438.0,1.05440264]
[1730804212281,8.20301,2438.2,2438.0,1.05440264]
[1730804212576,8.20301,2438.2,2438.1,0.00368754]
[1730804212941,8.20301,2438.2,2438.1,0.28952858]
[1730804213947,4.10146,2438.2,2438.1,0.28952858]
[1730804214375,6.25246817,2438.2,2438.1,0.28952858]
[1730804214553,6.33291715,2438.2,2438.1,0.28952858]
[1730804217707,4.18190898,2438.2,2438.1,0.28952858]
[1730804218061,6.33291715,2438.2,2438.1,0.28952858]
[1730804218260,5.9027828,2438.2,2438.1,0.28952858]
[1730804218590,4.18190898,2438.2,2438.1,0.28952858]
[1730804218981,5.9027916,2438.2,2438.1,0.28952858]
[1730804220551,1.8013316,2438.2,2438.1,0.28952858]
[1730804220664,5.9027116,2438.2,2438.1,1.10582858]
[1730804222306,5.9027116,2438.2,2438.1,0.28952858]
[1730804223068,6.6527116,2438.2,2438.1,0.28952858]
[1730804224309,5.9027116,2438.2,2438.1,0.28952858]
[1730804224773,5.9027116,2438.2,2438.1,0.00368754]
[1730804225189,5.9027116,2438.2,2438.1,0.28870645]
[1730804227118,1.8013316,2438.2,2438.1,0.28870645]
[1730804227321,5.9025616,2438.3,2438.2,0.01]
[1730804227735,5.9025616,2438.3,2438.2,0.29500223]
[1730804229376,5.82196262,2438.4,2438.2,1.10860223]
[1730804229856,5.82196262,2438.4,2438.2,0.8236]
[1730804230027,9.92314262,2438.4,2438.3,0.28496807]
[1730804230223,5.82196262,2438.4,2438.3,0.28496807]
[1730804230430,5.82196262,2438.4,2438.2,0.8236]
[1730804230635,1.72088262,2438.4,2438.2,1.31649875]
[1730804230835,5.9022116,2438.5,2438.3,0.28782092]
[1730804231047,1.72088262,2438.4,2438.3,0.00368754]
[1730804231224,5.82176262,2438.5,2438.3,0.00368754]
[1730804231431,10.0031816,2438.5,2438.3,0.00368754]
[1730804231752,4.10104,2438.4,2438.3,0.00368754]
[1730804232360,5.82192262,2438.4,2438.3,0.00368754]
[1730804232520,7.24668334,2438.4,2438.3,0.00368754]
[1730804232840,4.10155,2438.1,2438.0,0.01368754]
[1730804233176,5.90027888,2438.1,2438.0,0.29846798]
[1730804233358,5.90027888,2438.1,2438.0,0.00368754]
[1730804233972,5.90027888,2438.1,2438.0,0.01368754]
[1730804235058,5.90027888,2438.1,2438.0,0.00368754]
[1730804235370,5.90027888,2438.1,2438.0,0.01368754]
[1730804235565,5.90027888,2438.1,2438.0,0.00368754]
[1730804235776,7.74066868,2438.1,2438.0,0.00368754]
[1730804236673,7.74066868,2438.1,2438.0,0.28846798]
[1730804237373,7.74066868,2438.1,2438.0,0.29846798]
[1730804238680,7.74066868,2438.1,2438.0,0.28846798]
[1730804238880,7.74066868,2438.1,2438.0,0.29846798]
[1730804242379,7.74066868,2438.1,2438.0,0.01368754]
[1730804242596,6.02238878,2438.1,2438.0,0.01368754]
[1730804242820,7.74178599,2438.1,2438.0,0.29846798]
[1730804243277,6.02238878,2438.1,2438.0,0.29846798]
[1730804243977,6.02238878,2438.1,2438.0,0.01368754]
[1730804244179,6.02238878,2438.1,2438.0,0.29870408]
[1730804244428,6.02238878,2438.1,2438.0,0.01368754]
[1730804244891,6.02238878,2438.1,2438.0,0.29870408]
[1730804245616,8.17162002,2438.1,2438.0,0.29870408]
[1730804245822,8.09117104,2438.1,2438.0,0.29870408]
[1730804247523,5.9419398,2438.1,2438.0,0.29870408]
[1730804247689,8.17284778,2438.1,2438.0,0.29870408]
[1730804247891,8.0923988,2438.1,2438.0,0.29870408]
[1730804249413,8.0923988,2438.1,2438.0,0.29501654]
[1730804249616,8.8646988,2438.1,2438.0,0.29870408]
[1730804249836,8.86536137,2438.1,2438.0,0.29870408]
[1730804250145,6.7142398,2438.1,2438.0,0.29870408]
[1730804250353,6.79468878,2438.1,2438.0,0.29870408]
[1730804250728,6.79468878,2438.1,2438.0,0.01368754]
[1730804250919,6.79468878,2438.1,2438.0,0.29870408]
[1730804251117,6.79468878,2438.1,2438.0,0.01368754]
[1730804251640,6.79468878,2438.1,2438.0,0.29870408]
[1730804251824,6.79468878,2438.1,2438.0,0.01368754]
[1730804252427,6.79468878,2438.1,2438.0,0.29870408]
[1730804252636,6.79468878,2438.1,2438.0,0.01]
[1730804252813,6.79468878,2438.1,2438.0,0.29870408]
[1730804253018,6.79468878,2438.1,2438.0,0.01368754]
[1730804253455,6.79468878,2438.1,2438.0,0.29870408]
[1730804253657,6.79468878,2438.1,2438.0,0.01368754]
[1730804253945,6.79468878,2438.1,2438.0,0.29873905]
[1730804254513,4.10189,2437.9,2437.8,0.01368754]
[1730804254714,6.25514798,2437.9,2437.8,0.01368754]
[1730804254950,6.25514798,2437.9,2437.8,0.2987724]
[1730804256165,6.33559696,2437.9,2437.8,0.2987724]
[1730804256974,6.33559097,2437.9,2437.8,0.2987724]
[1730804259584,6.33559097,2437.9,2437.8,0.01368754]
[1730804259766,6.33559097,2437.9,2437.8,0.2987724]
[1730804260078,6.33559097,2437.9,2437.8,0.01368754]
[1730804260640,6.33559097,2437.9,2437.8,0.2987724]
[1730804260845,6.33559097,2437.9,2437.8,0.01368754]
[1730804261348,6.33559097,2437.9,2437.8,0.2987724]
[1730804261549,4.18233898,2437.9,2437.8,0.2987724]
[1730804261745,6.33561008,2437.9,2437.8,0.2987724]
[1730804262148,6.33561008,2437.9,2437.8,0.64719681]
[1730804264559,6.33561008,2437.9,2437.8,0.64719706]
[1730804266482,6.33559024,2437.9,2437.8,0.64719706]
[1730804268596,6.33559024,2437.9,2437.8,0.2987724]
[1730804268797,6.33559024,2437.9,2437.8,0.64718261]
[1730804269002,7.16209024,2437.9,2437.8,0.64718261]
[1730804269213,9.40274293,2437.9,2437.8,0.28508486]
[1730804269359,7.66547143,2437.9,2437.8,0.28508486]
[1730804269560,4.10256,2437.5,2437.4,0.00368754]
[1730804269773,6.25570493,2437.5,2437.4,0.00368754]
[1730804270006,6.25570493,2437.5,2437.4,0.27961216]
[1730804270157,6.25570493,2437.5,2437.4,0.00368754]
[1730804270358,6.33615391,2437.5,2437.4,0.27961216]
[1730804271001,5.54073823,2437.5,2437.4,0.27961216]
[1730804272505,6.84207565,2437.5,2437.4,0.00368754]
[1730804272802,6.84207565,2437.5,2437.4,0.28011081]
[1730804273338,8.99338031,2437.5,2437.4,0.28011081]
[1730804273545,6.76162667,2437.5,2437.4,0.28011081]
[1730804273700,6.84207565,2437.5,2437.4,0.28011081]
[1730804273900,6.84207565,2437.5,2437.4,0.00368754]
[1730804274094,6.84207565,2437.5,2437.4,0.28011081]
[1730804274403,6.84207565,2437.5,2437.4,0.00368754]
[1730804275339,6.84207565,2437.5,2437.4,0.28011081]
[1730804276347,10.25019145,2437.5,2437.4,0.27642327]
[1730804276642,10.16974247,2437.5,2437.4,0.27642327]
[1730804276797,10.16974247,2437.5,2437.3,0.37688316]
[1730804276798,4.92923,2437.4,2437.3,0.37688316]
[1730804276996,7.79462248,2437.4,2437.3,0.37688316]
[1730804279330,10.37288164,2437.4,2437.3,0.37688316]
[1730804279544,10.29243266,2437.4,2437.3,0.37688316]
[1730804279941,7.7141735,2437.4,2437.3,0.37688316]
[1730804280117,7.79462248,2437.4,2437.3,0.37688316]
[1730804281808,10.37105792,2437.4,2437.3,0.37688316]
[1730804282002,10.29060894,2437.4,2437.3,0.37688316]
[1730804282440,7.7141735,2437.4,2437.3,0.37688316]
[1730804282607,10.37031471,2437.4,2437.3,0.37688316]
[1730804282803,10.29617819,2437.4,2437.3,0.37688316]
[1730804283206,7.72048596,2437.4,2437.3,0.37688316]
[1730804283514,10.37592541,2437.4,2437.3,0.37688316]
[1730804283726,10.29547643,2437.4,2437.3,0.37688316]
[1730804284548,7.72048596,2437.4,2437.3,0.37688316]
[1730804284747,7.80093494,2437.4,2437.3,0.37688316]
[1730804285040,10.37528938,2437.4,2437.3,0.37688316]
[1730804285244,10.2948404,2437.4,2437.3,0.37688316]
[1730804288562,8.93711115,2437.4,2437.3,0.37688316]
[1730804288795,9.03766396,2437.4,2437.3,0.37688316]
[1730804289605,9.03755497,2437.4,2437.3,0.37688316]
[1730804290209,10.38897176,2437.4,2437.3,0.37688316]
[1730804290370,10.39528422,2437.4,2437.3,0.37688316]
[1730804291505,10.38897176,2437.4,2437.3,0.37688316]
[1730804291719,11.20857176,2437.4,2437.3,0.37688316]
[1730804291900,11.21488422,2437.4,2437.3,0.37688316]
[1730804292933,8.49311326,2437.4,2437.3,0.37688316]
[1730804293088,9.85682669,2437.4,2437.3,0.37688316]
[1730804294312,11.21455172,2437.4,2437.3,0.37688316]
[1730804294512,6.24596651,2437.4,2437.3,0.37688316]
[1730804294813,4.18317898,2437.4,2437.3,1.14538316]
[1730804295032,5.54090823,2437.4,2437.3,1.14538316]
[1730804299995,5.54090823,2437.4,2437.3,1.42318823]
[1730804302128,5.54090823,2437.4,2437.3,0.37688316]
[1730804302606,7.25551912,2437.4,2437.3,0.37688316]
[1730804303103,5.54090823,2437.4,2437.3,0.37688316]
[1730804303311,7.25551912,2437.4,2437.3,0.37688316]
[1730804304223,5.54090823,2437.4,2437.3,0.37688316]
[1730804304531,5.54090823,2437.4,2437.3,0.65429433]
[1730804304752,7.25551912,2437.4,2437.3,0.65429433]
[1730804307449,7.25551912,2437.4,2437.3,0.37688316]
[1730804307621,10.04084838,2437.4,2437.3,0.37688316]
[1730804307823,9.02978851,2437.4,2437.3,0.37688316]
[1730804308043,11.60609081,2437.4,2437.3,0.37688316]
[1730804309626,9.02978851,2437.4,2437.3,0.37688316]
[1730804309826,11.60714978,2437.4,2437.3,0.37688316]
[1730804310058,11.60714708,2437.4,2437.3,0.37688316]
[1730804310462,9.02978851,2437.4,2437.3,0.37688316]
[1730804311667,10.25061606,2437.4,2437.3,0.37688316]
[1730804311826,9.46661606,2437.4,2437.3,0.37688316]
[1730804312664,9.46743618,2437.4,2437.3,0.37688316]
[1730804312959,9.46746875,2437.4,2437.3,0.37688316]
[1730804313137,6.88805926,2437.4,2437.3,0.37688316]
[1730804313347,6.96850824,2437.4,2437.3,0.37688316]
[1730804314921,5.61077899,2437.4,2437.3,0.37688316]
[1730804315271,6.96850824,2437.4,2437.3,0.37688316]
[1730804315567,8.32623749,2437.4,2437.3,0.37688316]
[1730804315723,4.1034,2437.0,2436.9,0.00368754]
[1730804315924,4.1034,2437.0,2436.9,0.2816644]
[1730804316140,5.54157823,2437.0,2436.9,0.00368754]
[1730804317847,4.18384898,2437.0,2436.9,0.00368754]
[1730804318444,6.33626425,2437.0,2436.9,0.00368754]
[1730804318889,6.33626425,2437.0,2436.9,0.28169941]
[1730804319547,4.18384898,2437.0,2436.9,0.28169941]
[1730804319950,6.33654941,2437.0,2436.9,0.28169941]
[1730804320154,4.18384898,2437.0,2436.9,0.28169941]